bitfinex-derivatives/quotes_BTCF0:USTF0_20250517
["timestamp","ask_amount","ask_price","bid_price","bid_amount"]
[1747500836684,0.99536908,102940.0,102930.0,0.8808281]
[1747500839592,1.09374608,102940.0,102930.0,0.6539]
[1747500839892,1.09374608,102940.0,102930.0,0.5881281]
[1747500839893,0.99536908,102940.0,102930.0,0.5881281]
[1747500840091,0.99536908,102940.0,102930.0,0.6216281]
[1747500841296,0.99536908,102940.0,102930.0,0.3939]
[1747500841499,0.99536908,102940.0,102930.0,0.5881281]
[1747500841889,0.99536908,102940.0,102930.0,0.2377281]
[1747500849303,0.99536908,102940.0,102930.0,0.4677281]
[1747500851806,0.89699208,102940.0,102930.0,0.4677281]
[1747500852110,0.53619208,102940.0,102930.0,0.4994281]
[1747500852304,0.89699208,102940.0,102930.0,0.4994281]
[1747500852702,0.53619208,102940.0,102930.0,0.4994281]
[1747500852902,0.89699208,102940.0,102930.0,0.4994281]
[1747500855009,0.99536908,102940.0,102930.0,0.4994281]
[1747500856311,0.99536908,102940.0,102930.0,0.53652525]
[1747500858001,0.89699208,102940.0,102930.0,0.53652525]
[1747500858202,0.99536908,102940.0,102930.0,0.53652525]
[1747500860012,0.63456908,102940.0,102930.0,0.53652525]
[1747500860405,0.48763968,102940.0,102930.0,0.63490225]
[1747500860606,0.186,102940.0,102930.0,1.37870225]
[1747500861208,0.006,102940.0,102930.0,1.37870225]
[1747500861614,0.006,102940.0,102930.0,1.16830225]
[1747500861818,0.006,102940.0,102930.0,1.1312051]
[1747500862418,0.006,102940.0,102930.0,1.18689647]
[1747500863217,0.004,102940.0,102930.0,1.18689647]
[1747500863822,0.1982092,102940.0,102930.0,1.18689647]
[1747500864013,0.004,102940.0,102930.0,1.1312051]
[1747500864316,0.1962092,102940.0,102930.0,1.1322051]
[1747500864617,0.1962092,102940.0,102930.0,1.5689251]
[1747500864813,0.2929092,102940.0,102930.0,1.1322051]
[1747500865019,0.29735136,102940.0,102930.0,1.1332051]
[1747500865223,0.29735136,102940.0,102930.0,0.7724051]
[1747500865518,0.29735136,102940.0,102930.0,1.1332051]
[1747500867115,0.29735136,102940.0,102930.0,1.18878862]
[1747500868123,0.29735136,102940.0,102930.0,1.22588577]
[1747500868524,0.10314216,102940.0,102930.0,1.22588577]
[1747500868725,0.10314216,102940.0,102930.0,1.57628577]
[1747500869427,0.03884216,102940.0,102930.0,1.57628577]
[1747500870017,0.2276092,102940.0,102930.0,1.57628577]
[1747500870425,0.0334,102940.0,102930.0,1.57628577]
[1747500870722,0.2276092,102940.0,102930.0,1.57628577]
[1747500870928,0.23305136,102940.0,102930.0,1.57628577]
[1747500873231,0.23305136,102940.0,102930.0,1.58860564]
[1747500873735,0.23305136,102940.0,102930.0,1.12942864]
[1747500873929,0.26735136,102940.0,102930.0,1.58860564]
[1747500877337,0.03884216,102940.0,102930.0,1.58860564]
[1747500877538,0.00644216,102940.0,102930.0,1.58860564]
[1747500878037,0.1952092,102940.0,102930.0,1.80688564]
[1747500879039,0.26505136,102940.0,102930.0,1.80688564]
[1747500879235,0.23408041,102940.0,102930.0,1.80688564]
[1747500881345,0.23408041,102940.0,102930.0,1.79453245]
[1747500881848,0.06984216,102940.0,102930.0,1.79453245]
[1747500882036,0.0644,102940.0,102930.0,1.79453245]
[1747500882241,0.2586092,102940.0,102930.0,1.79453245]
[1747500882746,0.2902092,102940.0,102930.0,1.79453245]
[1747500884348,0.096,102940.0,102930.0,1.79453245]
[1747500885355,0.3398554,102950.0,102940.0,0.1942092]
[1747500885553,0.4390554,102950.0,102940.0,0.7378862]
[1747500886053,0.4390554,102950.0,102940.0,0.7057862]
[1747500886353,0.6190554,102950.0,102940.0,0.76136972]
[1747500886851,0.6190554,102950.0,102940.0,0.66299272]
[1747500887050,0.6200554,102950.0,102940.0,0.66299272]
[1747500887544,0.6210554,102950.0,102940.0,0.66299272]
[1747500889951,0.6210554,102950.0,102940.0,0.70005655]
[1747500890450,0.62649756,102950.0,102940.0,0.70005655]
[1747500891553,0.62649756,102950.0,102940.0,0.79843355]
[1747500892350,0.62649756,102950.0,102940.0,0.70005655]
[1747500892554,0.62649756,102950.0,102940.0,0.79843355]
[1747500893960,0.62649756,102950.0,102940.0,0.70005655]
[1747500896058,0.62649756,102950.0,102940.0,0.64447303]
[1747500900869,0.62649756,102950.0,102940.0,0.74285003]
[1747500901759,0.62649756,102950.0,102940.0,0.64447303]
[1747500903464,0.6210554,102950.0,102940.0,0.64447303]
[1747500904367,0.62649756,102950.0,102940.0,0.64447303]
[1747500905365,0.6210554,102950.0,102940.0,0.64447303]
[1747500906168,0.6210554,102950.0,102940.0,0.70008733]
[1747500908369,0.6210554,102950.0,102940.0,0.71244052]
[1747500908667,0.62649756,102950.0,102940.0,0.71244052]
[1747500911471,0.6210554,102950.0,102940.0,0.71244052]
[1747500916576,0.62649756,102950.0,102940.0,0.81081752]
[1747500916873,0.62649756,102950.0,102940.0,0.71244052]
[1747500917576,0.6210554,102950.0,102940.0,0.71244052]
[1747500922771,0.6210554,102950.0,102940.0,0.81081752]
[1747500924484,0.6210554,102950.0,102940.0,0.71244052]
[1747500925380,0.6210587,102950.0,102940.0,0.71244052]
[1747500926178,0.6210587,102950.0,102940.0,0.43244052]
[1747500927675,0.62650086,102950.0,102940.0,0.43244052]
[1747500929077,0.62650086,102950.0,102940.0,0.66244052]
[1747500946910,0.62650086,102950.0,102940.0,0.60682622]
[1747500951007,0.6210587,102950.0,102940.0,0.60682622]
[1747500954105,0.62650086,102950.0,102940.0,0.60682622]
[1747500954813,0.57794916,102950.0,102940.0,0.70520322]
[1747500955004,0.572507,102950.0,102940.0,0.73640322]
[1747500955201,0.182,102950.0,102940.0,0.63802622]
[1747500955408,0.182,102950.0,102940.0,1.1525453]
[1747500955715,0.3761911,102950.0,102940.0,1.1525453]
[1747500955915,0.2773,102950.0,102940.0,1.0541683]
[1747500956114,0.2773,102950.0,102940.0,1.1525453]
[1747500956308,0.182,102950.0,102940.0,1.1525453]
[1747500956507,0.3761911,102950.0,102940.0,1.1525453]
[1747500956814,0.182,102950.0,102940.0,1.1525453]
[1747500957009,0.3761911,102950.0,102940.0,1.1525453]
[1747500957200,0.1961911,102950.0,102940.0,1.1525453]
[1747500957413,0.002,102950.0,102940.0,1.1525453]
[1747500957611,0.1961911,102950.0,102940.0,1.1525453]
[1747500957811,0.002,102950.0,102940.0,1.1525453]
[1747500958011,0.1961911,102950.0,102940.0,1.2509223]
[1747500958211,0.1961911,102950.0,102940.0,1.1525453]
[1747500958710,0.1961911,102950.0,102940.0,1.5029453]
[1747500959610,0.2612911,102950.0,102940.0,1.5029453]
[1747500960122,0.26673326,102950.0,102940.0,1.5029453]
[1747500960310,0.44673326,102950.0,102940.0,1.5029453]
[1747500960510,0.44673326,102950.0,102940.0,1.4045683]
[1747500960718,0.44673326,102950.0,102940.0,1.5029453]
[1747500961224,0.2612911,102950.0,102940.0,1.5029453]
[1747500961923,0.2928911,102950.0,102940.0,1.5029453]
[1747500963322,0.4728911,102950.0,102940.0,1.5029453]
[1747500963721,0.5712681,102950.0,102940.0,1.0125683]
[1747500964223,0.93751026,102950.0,102940.0,0.9808683]
[1747500964609,0.57671026,102950.0,102940.0,0.9808683]
[1747500964814,0.93751026,102950.0,102940.0,0.6304683]
[1747500965122,0.93751026,102950.0,102940.0,0.57512622]
[1747500966124,0.83913326,102950.0,102940.0,0.57512622]
[1747500966326,0.93751026,102950.0,102940.0,0.57512622]
[1747500969926,0.83913326,102950.0,102940.0,0.57512622]
[1747500970228,0.57671026,102950.0,102940.0,0.60622622]
[1747500970432,0.93751026,102950.0,102940.0,0.60622622]
[1747500970618,0.83913326,102950.0,102940.0,0.70460322]
[1747500970823,0.18744216,102950.0,102940.0,1.19598022]
[1747500971029,0.18744216,102950.0,102940.0,1.41382022]
[1747500971221,0.00744216,102950.0,102940.0,1.41382022]
[1747500971424,0.00744216,102950.0,102940.0,1.45096951]
[1747500971425,0.002,102950.0,102940.0,1.45096951]
[1747500971731,0.002,102950.0,102940.0,1.66892951]
[1747500972030,0.1961911,102950.0,102940.0,1.66892951]
[1747500972233,0.1961911,102950.0,102940.0,1.35271251]
[1747500972433,0.1961911,102950.0,102940.0,1.57051251]
[1747500973732,0.1961911,102950.0,102940.0,1.62565111]
[1747500976033,0.1961911,102950.0,102940.0,1.58850182]
[1747500976734,0.1961911,102950.0,102940.0,1.93890182]
[1747500977237,0.16522216,102950.0,102940.0,1.93890182]
[1747500982039,0.16522216,102950.0,102940.0,1.72110182]
[1747500982235,0.16522216,102950.0,102940.0,1.14234182]
[1747500982431,0.26506432,102950.0,102940.0,1.57778182]
[1747500982631,0.72424132,102950.0,102940.0,0.98066482]
[1747500982828,0.72424132,102950.0,102940.0,0.63026482]
[1747500983241,0.90424132,102950.0,102940.0,0.63026482]
[1747500986036,0.80586432,102950.0,102940.0,0.63026482]
[1747500986440,0.80042216,102950.0,102940.0,0.63026482]
[1747500988332,0.80042216,102950.0,102940.0,0.61798619]
[1747500989036,0.43962216,102950.0,102940.0,0.61798619]
[1747500989230,0.80042216,102950.0,102940.0,0.61798619]
[1747500990243,0.89879916,102950.0,102940.0,0.61798619]
[1747500991031,0.53799916,102950.0,102940.0,0.61798619]
[1747500991341,0.43962216,102950.0,102940.0,0.61798619]
[1747500991843,0.43962216,102950.0,102940.0,0.65038619]
[1747500992444,0.43962216,102950.0,102940.0,0.59524759]
[1747500992646,0.43962216,102950.0,102940.0,0.69362459]
[1747500993145,0.43962216,102950.0,102940.0,1.05442459]
[1747500993347,0.43962216,102950.0,102940.0,1.08652459]
[1747500993739,0.43962216,102950.0,102940.0,0.72572459]
[1747500994747,0.43962216,102950.0,102940.0,1.13125307]
[1747500995648,0.44506432,102950.0,102940.0,1.13125307]
[1747500996048,0.44506432,102950.0,102940.0,1.1435317]
[1747500996250,0.44506432,102950.0,102940.0,1.3611317]
[1747500996448,0.54344132,102950.0,102940.0,1.2306547]
[1747500996747,0.54344132,102950.0,102940.0,0.95792622]
[1747500997251,0.44506432,102950.0,102940.0,0.95792622]
[1747500997649,0.44506432,102950.0,102940.0,0.65792622]
[1747500997849,0.44506432,102950.0,102940.0,0.77792622]
[1747500998647,0.43962216,102950.0,102940.0,0.77792622]
[1747500998846,0.43962216,102950.0,102940.0,0.87630322]
[1747500999846,0.43962216,102950.0,102940.0,0.77792622]
[1747501000947,0.43962216,102950.0,102940.0,0.42752622]
[1747501004954,0.43962216,102950.0,102940.0,1.14670322]
[1747501005156,0.43962216,102950.0,102940.0,1.18385494]
[1747501005452,0.43962216,102950.0,102940.0,1.08547794]
[1747501005959,0.43962216,102950.0,102940.0,1.14053659]
[1747501006956,0.43962216,102950.0,102940.0,0.95053659]
[1747501007855,0.44506432,102950.0,102940.0,0.95053659]
[1747501008656,0.44506432,102950.0,102940.0,0.58973659]
[1747501009151,0.44506432,102950.0,102940.0,0.36312739]
[1747501009353,0.92424132,102950.0,102940.0,0.17312739]
[1747501009553,0.92424132,102950.0,102940.0,0.36733739]
[1747501009856,0.94424132,102950.0,102940.0,0.33018567]
[1747501010757,0.93879916,102950.0,102940.0,0.27512702]
[1747501011861,0.94424132,102950.0,102940.0,0.27512702]
[1747501012961,0.93879916,102950.0,102940.0,0.27512702]
[1747501013255,0.93879916,102950.0,102940.0,0.22571]
[1747501014358,0.57799916,102950.0,102940.0,0.22571]
[1747501014562,0.93879916,102950.0,102940.0,0.22571]
[1747501017557,0.1942099,102940.0,102930.0,0.24364572]
[1747501017792,0.8464639,102940.0,102930.0,0.49554572]
[1747501017960,1.1864639,102940.0,102930.0,0.08131702]
[1747501018260,1.4613039,102940.0,102930.0,0.06903246]
[1747501018762,1.4613039,102940.0,102930.0,0.07003246]
[1747501019466,1.4613039,102940.0,102930.0,0.07203246]
[1747501021265,1.4633039,102940.0,102930.0,0.07003246]
[1747501021465,1.4653039,102940.0,102930.0,0.06903246]
[1747501021658,1.4653039,102940.0,102930.0,0.03713246]
[1747501021858,1.7953039,102940.0,102930.0,0.03713246]
[1747501022577,1.6153039,102940.0,102930.0,0.03713246]
[1747501022870,1.6153039,102940.0,102930.0,0.06783246]
[1747501023367,1.6152639,102940.0,102930.0,0.0307]
[1747501024869,1.5168869,102940.0,102930.0,0.0307]
[1747501025174,1.08752906,102940.0,102930.0,0.0307]
[1747501025872,1.18590606,102940.0,102930.0,0.0307]
[1747501026076,1.1804639,102940.0,102930.0,0.0307]
[1747501026769,1.0820869,102940.0,102930.0,0.0307]
[1747501027167,1.0820869,102940.0,102930.0,0.2551288]
[1747501027372,0.8337099,102940.0,102930.0,0.2551288]
[1747501027674,0.8337099,102940.0,102930.0,0.2874288]
[1747501028371,0.4729099,102940.0,102930.0,0.2874288]
[1747501028571,0.4398099,102940.0,102930.0,0.3858058]
[1747501028871,0.4398099,102940.0,102930.0,0.7058058]
[1747501029168,0.4398099,102940.0,102930.0,0.6074288]
[1747501029571,0.4084099,102940.0,102930.0,0.6074288]
[1747501029873,0.4395099,102940.0,102930.0,0.6074288]
[1747501030263,0.2595099,102940.0,102930.0,0.6074288]
[1747501031977,0.2284099,102940.0,102930.0,0.6074288]
[1747501032377,0.2284099,102940.0,102930.0,0.7058058]
[1747501032579,0.1982099,102940.0,102930.0,0.7058058]
[1747501032972,0.1982099,102940.0,102930.0,0.6074288]
[1747501033374,0.2283099,102940.0,102930.0,0.6074288]
[1747501035881,0.1982099,102940.0,102930.0,0.6074288]
[1747501039983,0.2291099,102940.0,102930.0,0.6074288]
[1747501040187,0.4091099,102940.0,102930.0,0.6074288]
[1747501040585,0.3782099,102940.0,102930.0,0.6074288]
[1747501041088,0.1982099,102940.0,102930.0,0.6074288]
[1747501043091,0.1982099,102940.0,102930.0,0.7058058]
[1747501047194,0.4109099,102940.0,102930.0,0.7058058]
[1747501049303,0.4437099,102940.0,102930.0,0.6074288]
[1747501049504,0.4437099,102940.0,102930.0,0.7058058]
[1747501049703,0.4757099,102940.0,102930.0,0.7058058]
[1747501050294,0.4757099,102940.0,102930.0,0.6074288]
[1747501050503,0.4757099,102940.0,102930.0,0.66236795]
[1747501054403,0.4757099,102940.0,102930.0,0.6074288]
[1747501057304,0.4757099,102940.0,102930.0,0.66239974]
[1747501058205,0.4757099,102940.0,102930.0,0.76077674]
[1747501061307,0.2815,102940.0,102930.0,0.72847674]
[1747501061616,0.47571,102940.0,102930.0,1.11927674]
[1747501063215,0.47571,102940.0,102930.0,0.75847674]
[1747501063709,0.47371,102940.0,102930.0,0.75847674]
[1747501064212,0.47171,102940.0,102930.0,1.11927674]
[1747501064407,0.47171,102940.0,102930.0,0.75847674]
[1747501064614,0.47171,102940.0,102930.0,1.11927674]
[1747501065314,0.47171,102940.0,102930.0,0.75847674]
[1747501065521,0.47171,102940.0,102930.0,1.11927674]
[1747501066109,0.29171,102940.0,102930.0,1.11927674]
[1747501067517,0.29171,102940.0,102930.0,1.0643058]
[1747501068224,0.47171,102940.0,102930.0,1.0643058]
[1747501068613,0.47171,102940.0,102930.0,0.74063826]
[1747501068914,0.47171,102940.0,102930.0,1.10143826]
[1747501069920,0.2775,102940.0,102930.0,1.10143826]
[1747501071223,0.4717099,102940.0,102930.0,1.10143826]
[1747501072423,0.2775,102940.0,102930.0,1.10143826]
[1747501073224,0.0975,102940.0,102930.0,0.74063826]
[1747501073424,0.0975,102940.0,102930.0,1.11372282]
[1747501074123,0.2775,102940.0,102930.0,1.11372282]
[1747501075125,0.24652726,102940.0,102930.0,1.11372282]
[1747501075822,0.2448,102940.0,102930.0,1.11372282]
[1747501078233,0.0648,102940.0,102930.0,1.11372282]
[1747501078733,0.0648,102940.0,102930.0,1.46412282]
[1747501079131,0.0648,102940.0,102930.0,1.51905997]
[1747501080027,0.0648,102940.0,102930.0,1.42068297]
[1747501080224,0.0648,102940.0,102930.0,1.51905997]
[1747501080726,0.0648,102940.0,102930.0,1.42068297]
[1747501080931,0.0648,102940.0,102930.0,1.73565997]
[1747501081132,0.25901,102940.0,102930.0,1.51905997]
[1747501081334,0.0648,102940.0,102930.0,1.51905997]
[1747501081629,0.0961,102940.0,102930.0,1.51905997]
[1747501081830,0.10154216,102940.0,102930.0,1.51905997]
[1747501082731,0.0961,102940.0,102930.0,1.51905997]
[1747501083526,0.388687,102940.0,102930.0,1.36048297]
[1747501083734,0.388687,102940.0,102930.0,0.99968297]
[1747501084140,0.929487,102940.0,102930.0,0.94474582]
[1747501084740,0.929487,102940.0,102930.0,0.59434582]
[1747501086035,0.93492916,102940.0,102930.0,0.59434582]
[1747501089743,0.93492916,102940.0,102930.0,0.5449288]
[1747501090534,0.83655216,102940.0,102930.0,0.5449288]
[1747501090735,0.93492916,102940.0,102930.0,0.5449288]
[1747501091039,0.929487,102940.0,102930.0,0.5449288]
[1747501091835,0.83111,102940.0,102930.0,0.5449288]
[1747501092256,0.929487,102940.0,102930.0,0.5449288]
[1747501099541,0.735277,102940.0,102930.0,0.5449288]
[1747501099754,0.47031,102940.0,102930.0,0.5449288]
[1747501099950,0.47031,102940.0,102930.0,0.62744582]
[1747501107353,0.43901,102940.0,102930.0,0.72582282]
[1747501107556,0.2448,102940.0,102930.0,0.75852282]
[1747501107757,0.43901,102940.0,102930.0,0.75852282]
[1747501109358,0.43901,102940.0,102930.0,0.66014582]
[1747501111060,0.537387,102940.0,102930.0,0.66014582]
[1747501111263,0.43901,102940.0,102930.0,0.62744582]
[1747501111465,0.47221,102940.0,102930.0,0.62744582]
[1747501113464,0.47221,102940.0,102930.0,0.65884582]
[1747501114158,0.47765216,102940.0,102930.0,0.65884582]
[1747501115579,0.44445216,102940.0,102930.0,0.65884582]
[1747501116264,0.43901,102940.0,102930.0,0.65884582]
[1747501118276,0.43901,102940.0,102930.0,0.69600722]
[1747501118477,0.43901,102940.0,102930.0,0.79438422]
[1747501118975,0.18,102940.0,102930.0,1.15518422]
[1747501119179,0.7458029,102950.0,102940.0,0.19421]
[1747501119475,0.3850029,102950.0,102940.0,0.60991]
[1747501119883,0.8441799,102950.0,102940.0,0.40991]
[1747501120063,1.0241799,102950.0,102940.0,0.40991]
[1747501120271,1.0261799,102950.0,102940.0,0.40991]
[1747501120469,1.0281799,102950.0,102940.0,0.40991]
[1747501122776,0.6673799,102950.0,102940.0,0.40991]
[1747501122981,1.0281799,102950.0,102940.0,0.40991]
[1747501123185,1.0281799,102950.0,102940.0,0.61991]
[1747501124274,0.9298029,102950.0,102940.0,0.61991]
[1747501124479,0.8980029,102950.0,102940.0,0.61991]
[1747501125281,0.90344506,102950.0,102940.0,0.61991]
[1747501126384,0.5372029,102950.0,102940.0,0.61991]
[1747501127177,0.8980029,102950.0,102940.0,0.58761]
[1747501127376,0.9285029,102950.0,102940.0,0.55691]
[1747501127568,0.9285029,102950.0,102940.0,0.3627]
[1747501127772,0.9285029,102950.0,102940.0,0.5569099]
[1747501129177,0.9285029,102950.0,102940.0,0.5899099]
[1747501133487,1.0268799,102950.0,102940.0,0.5899099]
[1747501135784,0.9285029,102950.0,102940.0,0.5899099]
[1747501137688,0.9285029,102950.0,102940.0,0.3627]
[1747501137895,1.0268799,102950.0,102940.0,0.0727]
[1747501138282,1.0868799,102950.0,102940.0,0.0327]
[1747501138486,1.82392206,102950.0,102940.0,0.0327]
[1747501139995,1.58392206,102950.0,102940.0,0.0327]
[1747501141186,1.15232206,102950.0,102940.0,0.0327]
[1747501141389,1.15232206,102950.0,102940.0,0.0698614]
[1747501141588,1.1468799,102950.0,102940.0,0.0698614]
[1747501144298,1.1468799,102950.0,102940.0,0.2640713]
[1747501145799,1.1468799,102950.0,102940.0,0.3340713]
[1747501146594,1.1468799,102950.0,102940.0,0.2969099]
[1747501148200,1.5783599,102950.0,102940.0,0.2969099]
[1747501148602,1.3627199,102950.0,102940.0,0.2969099]
[1747501148791,1.095791,102950.0,102940.0,0.3952869]
[1747501148999,0.734991,102950.0,102940.0,0.7170869]
[1747501149192,0.2459,102950.0,102940.0,0.7478869]
[1747501149391,0.4400911,102950.0,102940.0,0.7478869]
[1747501149893,0.4400911,102950.0,102940.0,0.6495099]
[1747501150097,0.004,102950.0,102940.0,0.7478869]
[1747501150387,0.002,102950.0,102940.0,0.7478869]
[1747501150992,0.80836674,102960.0,102950.0,0.1941911]
[1747501150993,0.90674374,102960.0,102950.0,0.1941911]
[1747501151187,0.3952,102960.0,102950.0,0.6968681]
[1747501151396,0.002,102960.0,102950.0,1.0576681]
[1747501152206,0.004,102960.0,102950.0,1.0576681]
[1747501153293,0.004,102960.0,102950.0,1.2732281]
[1747501153698,0.002,102960.0,102950.0,1.2732281]
[1747501154098,0.002,102960.0,102950.0,1.4890281]
[1747501154608,0.30018285,102970.0,102960.0,0.1941723]
[1747501154808,0.3719551,102980.0,102970.0,0.1941534]
[1747501155011,0.3719551,102980.0,102970.0,0.7273304]
[1747501155213,0.5851551,102980.0,102970.0,0.7273304]
[1747501156011,0.4880815,102980.0,102970.0,0.7273304]
[1747501156211,0.4900815,102980.0,102970.0,0.7273304]
[1747501156407,0.4415346,102980.0,102970.0,0.7273304]
[1747501156707,0.4103346,102980.0,102970.0,0.7273304]
[1747501157104,0.2303346,102980.0,102970.0,0.7273304]
[1747501158010,0.2323346,102980.0,102970.0,0.7273304]
[1747501158306,0.4123346,102980.0,102970.0,0.7273304]
[1747501158911,0.4123346,102980.0,102970.0,0.7419427]
[1747501159912,0.41777676,102980.0,102970.0,0.7419427]
[1747501162011,0.44857676,102980.0,102970.0,0.7419427]
[1747501162909,0.44857676,102980.0,102970.0,0.6435657]
[1747501163405,0.47907676,102980.0,102970.0,0.6435657]
[1747501174112,0.25444216,102980.0,102970.0,0.7419427]
[1747501174513,0.38457736,102980.0,102970.0,0.7419427]
[1747501175018,0.3791352,102980.0,102970.0,0.7419427]
[1747501175207,0.185,102980.0,102970.0,1.1027427]
[1747501176019,0.19044216,102980.0,102970.0,1.1027427]
[1747501176205,0.01044216,102980.0,102970.0,1.1027427]
[1747501180823,0.01044216,102980.0,102970.0,1.4531427]
[1747501182824,0.3760241,103000.0,102990.0,0.1941164]
[1747501183022,0.44877249,103000.0,102990.0,0.6124934]
[1747501183217,0.62877249,103000.0,102990.0,0.6762934]
[1747501183418,0.6192241,103000.0,102990.0,0.6762934]
[1747501183926,0.6242241,103000.0,102990.0,0.6772934]
[1747501184317,0.6292241,103000.0,102990.0,0.6772934]
[1747501186814,0.6242241,103000.0,102990.0,0.6772934]
[1747501187622,0.6192241,103000.0,102990.0,0.6762934]
[1747501189128,0.62466626,103000.0,102990.0,0.6762934]
[1747501193225,0.62466626,103000.0,102990.0,0.5779164]
[1747501195634,0.62466626,103000.0,102990.0,0.6762934]
[1747501195841,0.57614166,103000.0,102990.0,0.6762934]
[1747501196333,0.28744216,103000.0,102990.0,0.6762934]
[1747501196633,0.28744216,103000.0,102990.0,1.0681934]
[1747501198236,0.282,103000.0,102990.0,1.0681934]
[1747501199233,0.28744216,103000.0,102990.0,0.9698164]
[1747501199434,0.28744216,103000.0,102990.0,1.0681934]
[1747501200335,0.28744216,103000.0,102990.0,0.8657704]
[1747501200632,0.0331,103010.0,103000.0,0.1940976]
[1747501200936,0.2271787,103010.0,103000.0,0.6715976]
[1747501201124,0.4388787,103010.0,103000.0,1.0690176]
[1747501201325,0.4692787,103010.0,103000.0,0.7376746]
[1747501201525,0.4692787,103010.0,103000.0,1.1673946]
[1747501201734,0.4722787,103010.0,103000.0,1.1673946]
[1747501202347,0.4722787,103010.0,103000.0,1.1673546]
[1747501202637,0.4702787,103010.0,103000.0,1.1673546]
[1747501203223,0.2762,103010.0,103000.0,1.1673546]
[1747501203728,0.2762,103010.0,103000.0,1.1996546]
[1747501204544,0.25124216,103010.0,103000.0,1.2980316]
[1747501204840,0.25124216,103010.0,103000.0,1.587216]
[1747501205139,0.25124216,103010.0,103000.0,1.685593]
[1747501205528,0.28284216,103010.0,103000.0,1.587216]
[1747501208439,0.25124216,103010.0,103000.0,1.587216]
[1747501208837,0.25124216,103010.0,103000.0,1.685593]
[1747501209034,0.44532086,103010.0,103000.0,0.993759]
[1747501209232,0.47742086,103010.0,103000.0,0.993759]
[1747501209432,0.57579786,103010.0,103000.0,0.7537589]
[1747501210037,0.57579786,103010.0,103000.0,0.6137589]
[1747501210333,0.93659786,103010.0,103000.0,0.5816589]
[1747501210740,0.93659786,103010.0,103000.0,0.2312589]
[1747501210926,0.93659786,103010.0,103000.0,0.0371614]
[1747501211439,0.93659786,103010.0,103000.0,0.2512589]
[1747501211736,0.93659786,103010.0,103000.0,0.0371614]
[1747501212131,1.09659786,103010.0,103000.0,0.0371614]
[1747501212327,1.09659786,103010.0,103000.0,0.2312589]
[1747501212739,1.09659786,103010.0,103000.0,0.2636589]
[1747501213743,1.09659786,103010.0,103000.0,0.0695614]
[1747501214046,0.73579786,103010.0,103000.0,0.0695614]
[1747501214247,1.45739786,103010.0,103000.0,0.0695614]
[1747501215343,1.45739786,103010.0,103000.0,0.0324]
[1747501217442,1.45739786,103010.0,102990.0,0.24457234]
[1747501217443,0.1940975,103000.0,102990.0,0.24457234]
[1747501217643,0.7482745,103000.0,102990.0,0.31677234]
[1747501217844,0.6498975,103000.0,102990.0,0.31677234]
[1747501218140,0.8298975,103000.0,102990.0,0.31677234]
[1747501219346,0.8318975,103000.0,102990.0,0.31677234]
[1747501219947,0.4710975,103000.0,102990.0,0.31677234]
[1747501220149,0.8318975,103000.0,102990.0,0.31677234]
[1747501220444,0.8338975,103000.0,102990.0,0.31677234]
[1747501220646,0.4730975,103000.0,102990.0,0.31677234]
[1747501220949,0.8338975,103000.0,102990.0,0.31677234]
[1747501221848,0.4730975,103000.0,102990.0,0.31677234]
[1747501222043,0.8338975,103000.0,102990.0,0.31677234]
[1747501223747,0.8338975,103000.0,102990.0,0.41514934]
[1747501226044,0.8338975,103000.0,102990.0,0.37514934]
[1747501226242,0.8338975,103000.0,102990.0,0.61514934]
[1747501226443,0.8338975,103000.0,102990.0,0.54677234]
[1747501226644,0.8338975,103000.0,102990.0,0.64514934]
[1747501227152,0.279,103000.0,102990.0,0.64514934]
[1747501227341,0.4730975,103000.0,102990.0,1.03644934]
[1747501227938,0.4730975,103000.0,102990.0,0.67564934]
[1747501228435,0.4372975,103000.0,102990.0,0.67564934]
[1747501228641,0.4382975,103000.0,102990.0,0.67564934]
[1747501229643,0.4082975,103000.0,102990.0,1.03644934]
[1747501229952,0.3750975,103000.0,102990.0,1.03644934]
[1747501230647,0.181,103000.0,102990.0,1.03644934]
[1747501230845,0.181,103000.0,102990.0,1.13482634]
[1747501231242,0.001,103000.0,102990.0,1.13482634]
[1747501231753,0.001,103000.0,102990.0,1.48522634]
[1747501232054,0.001,103000.0,102990.0,1.48622634]
[1747501232755,0.001,103000.0,102990.0,1.38784934]
[1747501233050,0.1950975,103000.0,102990.0,1.38784934]
[1747501233554,0.1940975,103000.0,102990.0,1.38884934]
[1747501234058,0.3740975,103000.0,102990.0,1.38884934]
[1747501235757,0.18,103000.0,102990.0,1.38884934]
[1747501235957,0.18544216,103000.0,102990.0,1.48722634]
[1747501237154,0.00544216,103000.0,102990.0,1.48722634]
[1747501237456,0.1950636,103020.0,103010.0,0.1940786]
[1747501237649,0.1950636,103020.0,103010.0,0.9932556]
[1747501237853,0.1950636,103020.0,103010.0,1.0906556]
[1747501238053,0.1950636,103020.0,103010.0,0.7298556]
[1747501238249,0.4081636,103020.0,103010.0,0.7298556]
[1747501238455,0.4403636,103020.0,103010.0,0.7298556]
[1747501239357,0.4423636,103020.0,103010.0,0.7298556]
[1747501239860,0.4403636,103020.0,103010.0,0.7298556]
[1747501240250,0.4423636,103020.0,103010.0,0.7298556]
[1747501240851,0.4403636,103020.0,103010.0,0.7298556]
[1747501241051,0.4413636,103020.0,103010.0,0.7298556]
[1747501241761,0.4728636,103020.0,103010.0,0.6314786]
[1747501242058,0.4728636,103020.0,103010.0,0.7298556]
[1747501244455,0.2473,103020.0,103010.0,0.7298556]
[1747501244657,0.182,103020.0,103010.0,1.1890326]
[1747501246753,0.182,103020.0,103010.0,1.5394326]
[1747501249863,0.15105354,103020.0,103010.0,1.1890326]
[1747501250051,0.1564957,103020.0,103010.0,1.1890326]
[1747501252466,0.1564957,103020.0,103010.0,0.8282326]
[1747501252670,0.1564957,103020.0,103010.0,1.1890326]
[1747501253972,0.1564957,103020.0,103010.0,1.0906556]
[1747501254976,0.1564957,103020.0,103010.0,1.1890326]
[1747501255667,0.1564957,103020.0,103010.0,1.5394326]
[1747501258159,0.1564957,103020.0,103010.0,1.1786326]
[1747501258364,0.1564957,103020.0,103010.0,1.3426786]
[1747501258777,0.1564957,103020.0,103010.0,1.6555356]
[1747501259173,0.1866957,103020.0,103010.0,1.6555356]
[1747501260277,0.2190957,103020.0,103010.0,1.6555356]
[1747501260571,0.1564957,103020.0,103010.0,1.4410556]
[1747501260777,0.1564957,103020.0,103010.0,1.8700156]
[1747501260972,0.2190957,103020.0,103010.0,1.8700156]
[1747501261967,0.2190957,103020.0,103010.0,1.92357091]
[1747501262167,0.2190957,103020.0,103010.0,1.93318885]
[1747501263472,0.2180957,103020.0,103010.0,1.93418885]
[1747501263672,0.2180957,103020.0,103010.0,1.88063354]
[1747501264278,0.2180957,103020.0,103010.0,1.88163354]
[1747501266177,0.2180957,103020.0,103010.0,1.93503531]
[1747501270381,0.2180957,103020.0,103010.0,1.99670105]
[1747501270584,0.2180957,103020.0,103010.0,1.99654388]
[1747501272485,0.2180957,103020.0,103010.0,1.63574388]